[Event "Polonia Wroclaw Masters Cup-GM"]
[Site "Wroclaw"]
[Date "2019.04.30"]
[Round "3.2"]
[White "Kozak, Antoni"]
[Black "Tazbir, Marcin"]
[Result "1/2-1/2"]
[ECO "E32"]
[WhiteElo "2404"]
[BlackElo "2540"]
[Annotator "RC"]
[PlyCount "75"]
[EventDate "2019.04.28"]
[EventType "tourn"]
[EventCountry "POL"]
[SourceTitle "playchess.com"]
[Source "ChessBase"]
[SourceQuality "1"]
[TimeControl "40/5400+30:900+30"]

1. d4 {[%emt 0:00:00]} Nf6 {[%emt 0:00:00]} 2. c4 {[%emt 0:00:00]} e6 {[%emt 0:00:00]} 3. Nc3 {[%emt 0:00:00]} Bb4 {[%emt 0:00:00]} 4. Qc2 {[%emt 0:00:00]} O-O {[%emt 0:00:17]} 5. Bg5 {[%emt 0:00:00]} h6 {[%emt 0:00:58]} 6. Bh4 {[%emt 0:00:05]} d6 {[%emt 0:05:34]} 7. e3 {[%emt 0:05:28]} b6 {[%emt 0:05:19]} 8. Bd3 {[%emt 0:00:54]} Bb7 {[%emt 0:01:58]} 9. Nge2 {[%emt 0:00:28]} g5 {[%emt 0:15:47]} 10. Bg3 {[%emt 0:00:08]} Bxg2 {[%emt 0:00:13]} 11. Rg1 {[%emt 0:00:30]} Bf3 {[%emt 0:00:06]} 12. h4 {[%emt 0:05:58]} g4 {[%emt 0:01:15]} 13. O-O-O {[%emt 0:01:18]} Bxc3 {[%emt 0:02:33]} 14. Nxc3 {[%emt 0:04:01]} Bxd1 {[%emt 0:12:13]} 15. Qxd1 {[%emt 0:00:10]} h5 {[%emt 0:02:06]} 16. Bf4 {[%emt 0:02:44]} Nbd7 {[%emt 0:05:06]} 17. f3 {[%emt 0:18:29]} Kh8 {[%emt 0:13:16]} 18. fxg4 {[%emt 0:02:12]} Qe8 {[%emt 0:08:44]} 19. Nb5 {[%emt 0:11:07]} Rc8 {[%emt 0:03:16]} 20. Nxa7 {[%emt 0:00:16]} Ra8 {[%emt 0:00:34]} 21. Nb5 {[%emt 0:00:04]} Rc8 {[%emt 0:00:36]} 22. Bxd6 {[%emt 0:16:48]} cxd6 {[%emt 0:01:53]} 23. Nxd6 {[%emt 0:00:04]} Qe7 {[%emt 0:00:55]} 24. Nxc8 {[%emt 0:00:06]} Rxc8 {[%emt 0:00:26]} 25. gxh5 {[%emt 0:00:04]} e5 {[%emt 0:07:06]} 26. Qf3 {[%emt 0:08:42]} b5 {[%emt 0:05:36]} 27. c5 {[%emt 0:00:39]} exd4 {[%emt 0:00:28]} 28. exd4 {[%emt 0:00:04]} Nxc5 {[%emt 0:01:52]} 29. dxc5 {[%emt 0:00:22]} Qxc5+ {[%emt 0:00:04]} 30. Kd2 {[%emt 0:00:09]} Qb4+ {[%emt 0:01:10]} 31. Kd1 {[%emt 0:00:11]} Qa4+ {[%emt 0:04:04]} 32. Kd2 {[%emt 0:02:33]} Qd4 {[%emt 0:00:57]} 33. Rc1 {[%emt 0:00:29]} Qxb2+ {[%emt 0:00:12]} 34. Rc2 {[%emt 0:00:05]} Qb4+ {[%emt 0:00:39]} 35. Kd1 {[%emt 0:01:04]} Qb1+ {[%emt 0:00:10]} 36. Kd2 {[%emt 0:00:05]} Qb4+ {[%emt 0:01:13]} 37. Kd1 {[%emt 0:00:06]} Qb1+ {[%emt 0:00:08]} 38. Kd2 {[%emt 0:00:08]} 1/2-1/2

[Event "Polonia Wroclaw Masters Cup-GM"]
[Site "Wroclaw"]
[Date "2019.05.01"]
[Round "4.1"]
[White "Cukrowski, Filip"]
[Black "Przybylski, Wojciech"]
[Result "1-0"]
[ECO "B40"]
[WhiteElo "2421"]
[BlackElo "2320"]
[Annotator "NA"]
[PlyCount "123"]
[EventDate "2019.04.28"]
[EventType "tourn"]
[EventCountry "POL"]
[SourceTitle "playchess.com"]
[Source "ChessBase"]
[SourceQuality "1"]
[TimeControl "40/5400+30:900+30"]

{[%evp 8,121,21,-13,32767,32767,32767,32767,32767,32767,40,32,81,89,104,43,34,43,42,32767,32767,32767,32767,32767,95,32767,32767,32767,32767,32767,32767,32767,82,32767,32767,32767,32767,32767,32767,32767,32767,32767,-26,-8,-11,-90,32767,0,43,0,0,0,0,0,32767,0,25,14,38,32767,10,12,141,164,151,118,88,112,113,129,129,77,116,70,80,79,66,69,64,64,66,32767,93,32767,72,32767,32767,32767,32767,32767,32767,32767,32767,32767,32767,32767,32767,32767,32767,32767,32767,32767,32767,84,79,79,86,30,29,27,32767,27,67,15,86,43]} 1. e4 {[%emt 0:00:00]} c5 {[%emt 0:00:00]} 2. Nf3 {[%emt 0:00:00]} e6 {[%emt 0:00:00]} 3. Nc3 {[%emt 0:08:52]} Nc6 {[%emt 0:00:00]} 4. Bb5 {[%emt 0:05:44]} Nge7 {[%emt 0:07:24]} 5. O-O {[%emt 0:04:52]} Nd4 {[%emt 0:06:23]} 6. Nxd4 {[%emt 0:02:01]} cxd4 {[%emt 0:00:11]} 7. Ne2 {[%emt 0:00:05]} Nc6 {[%emt 0:02:34] B30: Sicilian: 2...Nc6 3 Bb5, lines without ...g6} (7... a6 8. Bd3 Nc6 9. c3 dxc3 10. bxc3 Be7 11. Bc2 d6 12. d4 O-O 13. Ng3 e5 14. Kh1 b5 15. a4 Bd7 16. f4 Rc8 17. dxe5 dxe5 18. axb5 axb5 19. f5 b4 20. Nh5 f6 21. Bh6 Be8 22. Bb3+ Bf7 23. Qg4 {1-0 (23) Guseinov,G (2664)-Miton,K (2588) St Petersburg 2018}) 8. d3 {[%emt 0:00:08]} Qb6 {[%emt 0:11:32]} 9. Ba4 {[%emt 0:00:37]} d6 {[%emt 0:14:48]} 10. c3 {[%emt 0:01:08]} dxc3 {[%emt 0:01:04]} 11. bxc3 {[%emt 0:00:06]} Be7 {[%emt 0:00:55]} 12. Be3 {[%emt 0:00:18]} Qc7 {[%emt 0:00:16]} 13. f4 {[%emt 0:01:04]} O-O $146 {[%emt 0:06:12]} ({Predecessor:} 13... Bd7 14. Rb1 O-O 15. f5 exf5 16. exf5 Bf6 17. Qd2 Ne5 18. Bxd7 Nxd7 {½-½ (18) Perdek,M (2232)-Simanjuntak,S (2260) Thessaloniki 2009}) 14. f5 {[%emt 0:12:49]} Ne5 {[%emt 0:23:13]} 15. h3 {[%emt 0:05:11]} d5 {[%emt 0:09:48]} (15... exf5 $11 16. exf5 b6) 16. Bf4 {[%emt 0:06:03]} Qb6+ {[%emt 0:00:08]} 17. Kh1 {[%emt 0:00:18]} f6 {[%emt 0:00:30]} 18. exd5 {[%emt 0:05:11]} exd5 {[%emt 0:01:09]} 19. Rb1 {[%emt 0:00:57]} Qa6 {[%emt 0:02:12]} 20. d4 {[%emt 0:02:53]} Bxf5 {[%emt 0:02:51]} 21. Bb5 {[%emt 0:25:40]} Qe6 {[%emt 0:00:06]} 22. dxe5 {[%emt 0:00:41]} fxe5 {[%emt 0:00:41]} 23. Rb2 {[%emt 0:00:33]} Bxh3 {[%emt 0:06:26]} 24. Bh2 {[%emt 0:02:40]} Bg4 {[%emt 0:00:38]} 25. Rxf8+ {[%emt 0:02:10]} Rxf8 {[%emt 0:00:05]} 26. Ba4 {[%emt 0:02:10]} (26. c4 $11 {keeps the balance.}) 26... Kh8 {[%emt 0:02:44]} 27. Qe1 {[%emt 0:00:53]} Qa6 {[%emt 0:00:47]} 28. Bb5 {[%emt 0:01:13]} Qh6 {[%emt 0:00:41]} 29. Ng1 {[%emt 0:00:15]} e4 {[%emt 0:00:31]} 30. Qg3 {[%emt 0:02:01]} Be6 {[%emt 0:00:35]} 31. Be2 {[%emt 0:03:32]} Bc5 {[%emt 0:00:29]} 32. Rb1 {[%emt 0:00:31]} b6 {[%emt 0:00:34]} 33. Nh3 {[%emt 0:01:04]} Qd2 {[%emt 0:00:25] Double Attack} 34. Qe1 {[%emt 0:01:22]} Qxa2 {[%emt 0:00:29] [#]} (34... Qh6 $11 {keeps the balance.}) 35. Ra1 $1 {[%emt 0:00:15]} Qc2 {[%emt 0:00:31]} 36. Nf4 {[%emt 0:01:12]} ({White should play} 36. Be5 $18 Bxh3 37. Rxa7 Bxg2+ 38. Kxg2) 36... Bf7 {[%emt 0:00:35]} 37. Rxa7 {[%emt 0:00:20]} d4 {[%emt 0:00:22]} 38. cxd4 {[%emt 0:00:08]} Bxd4 {[%emt 0:00:11]} 39. Rc7 {[%emt 0:01:25]} Qb2 {[%emt 0:00:43]} (39... Qxc7 $2 {[#] too greedy.} 40. Ng6+ $1 {[%mdl 576] Discovered Attack} Bxg6 41. Bxc7 $18) 40. Qc1 {[%emt 0:00:00]} Qxc1+ {[%emt 0:00:00]} 41. Rxc1 {[%emt 0:01:25]} Ra8 {[%emt 0:12:07]} 42. Bb5 {[%emt 0:00:46]} e3 {[%emt 0:01:39]} 43. Ne2 {[%emt 0:00:40]} Bc5 {[%emt 0:00:59]} 44. Be5 {[%emt 0:00:53]} Rd8 {[%emt 0:00:27]} 45. Ra1 {[%emt 0:01:11]} Kg8 {[%emt 0:00:49]} 46. Bc3 {[%emt 0:01:07]} h6 {[%emt 0:01:07]} 47. Kg1 {[%emt 0:01:45]} Bb3 {[%emt 0:00:57]} 48. Kf1 {[%emt 0:06:42]} Rf8+ {[%emt 0:00:41]} 49. Ke1 {[%emt 0:00:45]} Bd5 {[%emt 0:01:27]} 50. Ra7 {[%emt 0:00:12]} Rf7 {[%emt 0:00:06]} 51. Rxf7 {[%emt 0:00:07]} Kxf7 {[%emt 0:00:01]} 52. Nf4 {[%emt 0:00:17]} Bb3 {[%emt 0:01:19]} 53. Ke2 {[%emt 0:01:04]} g5 {[%emt 0:00:15]} 54. Nd3 {[%emt 0:00:11]} Bd6 {[%emt 0:00:51]} 55. Kxe3 {[%emt 0:00:30]} h5 {[%emt 0:00:28]} 56. Ne5+ {[%emt 0:03:07]} Ke7 {[%emt 0:00:28]} 57. Bc6 {[%emt 0:01:13]} ({White should play} 57. Ke4 $16) 57... Be6 {[%emt 0:00:29]} 58. Bd4 {[%emt 0:01:45]} Bc7 {[%emt 0:00:20]} 59. Bf3 {[%emt 0:00:29]} g4 {[%emt 0:00:41] [#]} 60. Be4 {[%emt 0:00:49]} (60. Ng6+ $1 $16 Kf7 61. Be4) 60... b5 $16 {[%emt 0:00:19]} (60... Bxe5 $1 $11 61. Bxe5 h4) 61. g3 {[%emt 0:00:55]} Ba5 {[%emt 0:00:45]} 62. Nc6+ {[%emt 0:00:15]} 1-0

[Event "Polonia Wroclaw Masters Cup-GM"]
[Site "Wroclaw"]
[Date "2019.05.01"]
[Round "5.1"]
[White "Kozak, Antoni"]
[Black "Cukrowski, Filip"]
[Result "0-1"]
[ECO "E32"]
[WhiteElo "2404"]
[BlackElo "2421"]
[Annotator "NA"]
[PlyCount "76"]
[EventDate "2019.04.28"]
[EventType "tourn"]
[EventCountry "POL"]
[SourceTitle "playchess.com"]
[Source "ChessBase"]
[SourceQuality "1"]
[TimeControl "40/5400+30:900+30"]

1. d4 {[%emt 0:00:00]} Nf6 {[%emt 0:00:00]} 2. c4 {[%emt 0:00:00]} e6 {[%emt 0:00:00]} 3. Nc3 {[%emt 0:00:00]} Bb4 {[%emt 0:00:03]} 4. Qc2 {[%emt 0:00:00]} O-O {[%emt 0:00:06]} 5. a3 {[%emt 0:00:00]} Bxc3+ {[%emt 0:00:40]} 6. Qxc3 {[%emt 0:00:01]} d6 {[%emt 0:01:06]} 7. f3 {[%emt 0:00:06]} Nbd7 {[%emt 0:01:28]} 8. e4 {[%emt 0:00:51]} e5 {[%emt 0:00:10]} 9. d5 {[%emt 0:05:53]} a5 {[%emt 0:00:12]} 10. Bd3 {[%emt 0:01:55]} Nh5 {[%emt 0:02:04]} 11. Ne2 {[%emt 0:01:06]} Nc5 {[%emt 0:00:26]} 12. Bc2 {[%emt 0:02:59]} Qe7 {[%emt 0:19:58]} 13. Be3 {[%emt 0:01:40]} Bd7 {[%emt 0:06:04]} 14. b4 {[%emt 0:04:57]} Na6 {[%emt 0:03:09]} 15. O-O {[%emt 0:00:44]} g6 {[%emt 0:02:31]} 16. Bd3 {[%emt 0:09:34]} f5 {[%emt 0:00:54]} 17. c5 {[%emt 0:00:15]} f4 {[%emt 0:01:37]} 18. Bf2 {[%emt 0:00:09]} g5 {[%emt 0:00:20]} 19. c6 {[%emt 0:01:18]} bxc6 {[%emt 0:00:19]} 20. dxc6 {[%emt 0:00:07]} Bc8 {[%emt 0:01:36]} 21. b5 {[%emt 0:01:22]} Nc5 {[%emt 0:00:30]} 22. Bxc5 {[%emt 0:00:38]} dxc5 {[%emt 0:00:06]} 23. Rac1 {[%emt 0:00:16]} g4 {[%emt 0:00:14]} 24. Qxc5 {[%emt 0:23:48]} Qg7 {[%emt 0:00:46]} 25. Qd5+ {[%emt 0:06:55]} Kh8 {[%emt 0:00:06]} 26. Rc5 {[%emt 0:00:06]} Re8 {[%emt 0:00:09]} 27. Bc4 {[%emt 0:02:37]} Be6 {[%emt 0:02:07]} 28. Qd3 {[%emt 0:00:06]} Qf8 {[%emt 0:01:36]} 29. Rd5 {[%emt 0:01:30]} Bxd5 {[%emt 0:00:33]} 30. Bxd5 {[%emt 0:00:09]} Nf6 {[%emt 0:01:26]} 31. a4 {[%emt 0:00:46]} gxf3 {[%emt 0:01:20]} 32. gxf3 {[%emt 0:00:27]} Rad8 {[%emt 0:02:07]} 33. Nc3 {[%emt 0:00:47]} Qh6 {[%emt 0:02:18]} 34. Qe2 {[%emt 0:01:30]} Rg8+ {[%emt 0:02:41]} 35. Bxg8 {[%emt 0:02:26]} Rxg8+ {[%emt 0:00:04]} 36. Kh1 {[%emt 0:00:06]} Nh5 {[%emt 0:00:02]} 37. Qf2 {[%emt 0:00:11]} Ng3+ {[%emt 0:00:08]} 38. Kg2 {[%emt 0:00:03]} Nxe4+ {[%emt 0:00:05]} 0-1

[Event "Polonia Wroclaw Masters Cup-GM"]
[Site "Wroclaw"]
[Date "2019.05.01"]
[Round "5.4"]
[White "Swayams, Mishra"]
[Black "Sivuk, Vitaliy"]
[Result "1/2-1/2"]
[ECO "A48"]
[WhiteElo "2478"]
[BlackElo "2523"]
[Annotator "ChessBase"]
[PlyCount "22"]
[EventDate "2019.04.28"]
[EventType "tourn"]
[EventCountry "POL"]
[SourceTitle "playchess.com"]
[Source "ChessBase"]
[SourceQuality "1"]
[TimeControl "40/5400+30:900+30"]

1. d4 {[%emt 0:00:00]} Nf6 {[%emt 0:00:00]} 2. Nf3 {[%emt 0:00:15]} g6 {[%emt 0:00:00]} 3. Bg5 {[%emt 0:00:24]} Bg7 {[%emt 0:00:00]} 4. Nbd2 {[%emt 0:00:07]} O-O {[%emt 0:00:27]} 5. c3 {[%emt 0:00:03]} h6 {[%emt 0:00:14]} 6. Bh4 {[%emt 0:00:16]} d6 {[%emt 0:00:11]} 7. e4 {[%emt 0:00:09]} c5 {[%emt 0:00:09]} 8. dxc5 {[%emt 0:00:18]} dxc5 {[%emt 0:00:07]} 9. Bc4 {[%emt 0:00:09]} Nc6 {[%emt 0:00:10]} 10. Qe2 {[%emt 0:00:09]} Na5 {[%emt 0:04:39]} 11. Bd3 {[%emt 0:00:24]} Nh5 {[%emt 0:01:23]} 1/2-1/2

[Event "Polonia Wroclaw Masters Cup-GM"]
[Site "Wroclaw"]
[Date "2019.05.01"]
[Round "5.5"]
[White "Przybylski, Wojciech"]
[Black "Skawinski, Arkadiusz"]
[Result "1/2-1/2"]
[ECO "C91"]
[WhiteElo "2320"]
[BlackElo "2392"]
[Annotator "NA"]
[PlyCount "48"]
[EventDate "2019.04.28"]
[EventType "tourn"]
[EventCountry "POL"]
[SourceTitle "playchess.com"]
[Source "ChessBase"]
[SourceQuality "1"]
[TimeControl "40/5400+30:900+30"]

1. e4 {[%emt 0:00:00]} e5 {[%emt 0:00:00]} 2. Nf3 {[%emt 0:00:00]} Nc6 {[%emt 0:00:00]} 3. Bb5 {[%emt 0:00:53]} a6 {[%emt 0:00:00]} 4. Ba4 {[%emt 0:00:04]} Nf6 {[%emt 0:00:00]} 5. O-O {[%emt 0:00:07]} Be7 {[%emt 0:00:00]} 6. Re1 {[%emt 0:00:21]} b5 {[%emt 0:00:28]} 7. Bb3 {[%emt 0:00:04]} d6 {[%emt 0:00:11]} 8. c3 {[%emt 0:00:55]} O-O {[%emt 0:00:07]} 9. d4 {[%emt 0:00:29]} Bg4 {[%emt 0:00:20]} 10. Be3 {[%emt 0:00:14]} Bh5 {[%emt 0:00:07]} 11. h3 {[%emt 0:08:02]} Na5 {[%emt 0:00:17]} 12. Bc2 {[%emt 0:00:28]} Nc4 {[%emt 0:00:10]} 13. Bc1 {[%emt 0:00:42]} Nd7 {[%emt 0:00:26]} 14. b3 {[%emt 0:01:44]} Ncb6 {[%emt 0:00:05]} 15. Nbd2 {[%emt 0:01:28]} Bf6 {[%emt 0:03:13]} 16. Bb2 {[%emt 0:01:54]} Re8 {[%emt 0:08:12]} 17. Nf1 {[%emt 0:06:47]} Bg6 {[%emt 0:10:44]} 18. d5 {[%emt 0:26:55]} Qc8 {[%emt 0:02:31]} 19. Ne3 {[%emt 0:02:29]} c6 {[%emt 0:04:26]} 20. c4 {[%emt 0:02:14]} bxc4 {[%emt 0:08:46]} 21. Nxc4 {[%emt 0:05:13]} Nxc4 {[%emt 0:06:06]} 22. bxc4 {[%emt 0:01:26]} Nb6 {[%emt 0:18:21]} 23. Bb3 {[%emt 0:13:31]} a5 {[%emt 0:01:27]} 24. a4 {[%emt 0:08:04]} c5 {[%emt 0:02:57]} 1/2-1/2

[Event "Polonia Wroclaw Masters Cup-GM"]
[Site "Wroclaw"]
[Date "2019.05.02"]
[Round "6.5"]
[White "Kozak, Antoni"]
[Black "Pranav Anand"]
[Result "1/2-1/2"]
[ECO "E34"]
[WhiteElo "2404"]
[BlackElo "2359"]
[Annotator "NA"]
[PlyCount "148"]
[EventDate "2019.04.28"]
[EventType "tourn"]
[EventCountry "POL"]
[SourceTitle "playchess.com"]
[Source "ChessBase"]
[SourceQuality "1"]
[TimeControl "40/5400+30:900+30"]

1. d4 {[%emt 0:00:00]} Nf6 {[%emt 0:00:00]} 2. c4 {[%emt 0:00:00]} e6 {[%emt 0:00:00]} 3. Nc3 {[%emt 0:00:00]} Bb4 {[%emt 0:00:09]} 4. Qc2 {[%emt 0:00:00]} d5 {[%emt 0:00:04]} 5. cxd5 {[%emt 0:00:00]} Qxd5 {[%emt 0:00:04]} 6. Nf3 {[%emt 0:00:28]} Qf5 {[%emt 0:00:07]} 7. Qxf5 {[%emt 0:00:56]} exf5 {[%emt 0:00:05]} 8. Bd2 {[%emt 0:01:09]} c6 {[%emt 0:01:05]} 9. e3 {[%emt 0:05:17]} Nbd7 {[%emt 0:01:24]} 10. Bd3 {[%emt 0:06:05]} Nb6 {[%emt 0:00:21]} 11. O-O {[%emt 0:00:53]} Be6 {[%emt 0:01:49]} 12. Nb5 {[%emt 0:12:17]} Bxd2 {[%emt 0:21:01]} 13. Nc7+ {[%emt 0:00:13]} Kd8 {[%emt 0:00:02]} 14. Nxa8 {[%emt 0:00:14]} Nc4 {[%emt 0:00:04]} 15. Bxc4 {[%emt 0:12:48]} Bxc4 {[%emt 0:00:36]} 16. Nxd2 {[%emt 0:00:10]} Bxf1 {[%emt 0:00:04]} 17. Kxf1 {[%emt 0:00:09]} Kd7 {[%emt 0:00:16]} 18. Nc4 {[%emt 0:02:31]} Rxa8 {[%emt 0:00:17]} 19. Ne5+ {[%emt 0:00:24]} Ke7 {[%emt 0:03:09]} 20. g3 {[%emt 0:01:25]} Nd5 {[%emt 0:01:38]} 21. Ke2 {[%emt 0:00:39]} f6 {[%emt 0:01:15]} 22. Nd3 {[%emt 0:00:09]} Kd6 {[%emt 0:01:05]} 23. h3 {[%emt 0:04:10]} h5 {[%emt 0:03:31]} 24. h4 {[%emt 0:02:12]} g6 {[%emt 0:01:14]} 25. Kd2 {[%emt 0:02:14]} Nc7 {[%emt 0:07:18]} 26. Nc5 {[%emt 0:10:40]} b6 {[%emt 0:01:09]} 27. Nd3 {[%emt 0:00:09]} Ne6 {[%emt 0:00:25]} 28. Rc1 {[%emt 0:00:11]} Rc8 {[%emt 0:02:40]} 29. Ke2 {[%emt 0:00:54]} Rc7 {[%emt 0:01:08]} 30. b3 {[%emt 0:02:10]} Re7 {[%emt 0:02:55]} 31. Kf3 {[%emt 0:02:31]} Rc7 {[%emt 0:00:39]} 32. Rd1 {[%emt 0:01:23]} Rd7 {[%emt 0:03:46]} 33. Nb4 {[%emt 0:04:01]} a5 {[%emt 0:01:48]} 34. Nd3 {[%emt 0:00:08]} Kc7 {[%emt 0:02:06]} 35. Ke2 {[%emt 0:04:21]} Rd8 {[%emt 0:00:38]} 36. Rc1 {[%emt 0:02:24]} Kb7 {[%emt 0:01:15]} 37. Nf4 {[%emt 0:02:12]} Nxf4+ {[%emt 0:00:47]} 38. gxf4 {[%emt 0:00:06]} Kc7 {[%emt 0:07:53]} 39. f3 {[%emt 0:08:58]} Kd6 {[%emt 0:04:00]} 40. Rg1 {[%emt 0:00:00]} Rg8 {[%emt 0:00:00]} 41. e4 {[%emt 0:00:23]} Ke6 {[%emt 0:01:34]} 42. Ke3 {[%emt 0:00:36]} Rg7 {[%emt 0:06:10]} 43. Rg2 {[%emt 0:04:12]} Rg8 {[%emt 0:01:23]} 44. Kd3 {[%emt 0:02:13]} fxe4+ {[%emt 0:01:26]} 45. fxe4 {[%emt 0:00:07]} f5 {[%emt 0:00:07]} 46. d5+ {[%emt 0:00:20]} cxd5 {[%emt 0:01:19]} 47. e5 {[%emt 0:00:05]} g5 {[%emt 0:02:19]} 48. hxg5 {[%emt 0:00:11]} h4 {[%emt 0:00:06]} 49. Rh2 {[%emt 0:01:57]} Rh8 {[%emt 0:00:08]} 50. Rh3 {[%emt 0:00:13]} Rh7 {[%emt 0:00:21]} 51. Kd4 {[%emt 0:00:54]} Rh8 {[%emt 0:00:21]} 52. g6 {[%emt 0:04:40]} Rh6 {[%emt 0:03:04]} 53. a4 {[%emt 0:02:13]} Rxg6 {[%emt 0:09:07]} 54. Rxh4 {[%emt 0:00:08]} Rg4 {[%emt 0:06:04]} 55. Rh6+ {[%emt 0:00:10]} Ke7 {[%emt 0:01:19]} 56. Kxd5 {[%emt 0:00:40]} Rxf4 {[%emt 0:00:05]} 57. Rh7+ {[%emt 0:03:44]} Kd8 {[%emt 0:00:25]} 58. Ke6 {[%emt 0:02:56]} Rf3 {[%emt 0:00:25]} 59. Kf7 {[%emt 0:01:01]} Rxb3 {[%emt 0:01:56]} 60. e6 {[%emt 0:01:17]} Re3 {[%emt 0:00:05]} 61. Rh4 {[%emt 0:01:23]} Kc7 62. e7 {[%emt 0:05:29]} Kd7 {[%emt 0:02:58]} 63. Rd4+ {[%emt 0:00:40]} Kc6 {[%emt 0:00:19]} 64. e8=Q+ {[%emt 0:02:28]} Rxe8 {[%emt 0:00:05]} 65. Kxe8 {[%emt 0:00:05]} b5 {[%emt 0:00:02]} 66. Rf4 {[%emt 0:00:34]} bxa4 {[%emt 0:00:29]} 67. Rxf5 {[%emt 0:00:06]} Kb6 {[%emt 0:00:03]} 68. Kd7 {[%emt 0:00:29]} a3 {[%emt 0:00:04]} 69. Kd6 {[%emt 0:00:03]} a4 {[%emt 0:01:01]} 70. Rf3 {[%emt 0:01:34]} Kb5 {[%emt 0:00:17]} 71. Rxa3 {[%emt 0:01:22]} Kb4 {[%emt 0:00:09]} 72. Ra1 {[%emt 0:02:04]} a3 {[%emt 0:00:19]} 73. Kd5 {[%emt 0:01:00]} Kb3 {[%emt 0:00:12]} 74. Rxa3+ {[%emt 0:00:16]} Kxa3 {[%emt 0:00:02]} 1/2-1/2

[Event "Polonia Wroclaw Masters Cup-GM"]
[Site "Wroclaw"]
[Date "2019.05.03"]
[Round "7.3"]
[White "Swayams, Mishra"]
[Black "Gumularz, Szymon"]
[Result "1-0"]
[ECO "A05"]
[WhiteElo "2478"]
[BlackElo "2483"]
[Annotator "ChessBase"]
[PlyCount "49"]
[EventDate "2019.04.28"]
[EventType "tourn"]
[EventCountry "POL"]
[SourceTitle "playchess.com"]
[Source "ChessBase"]
[SourceQuality "1"]
[TimeControl "40/5400+30:900+30"]

1. Nf3 {[%emt 0:04:03]} Nf6 {[%emt 0:00:00]} 2. c4 {[%emt 0:00:41]} d6 {[%emt 0:02:17]} 3. d4 {[%emt 0:01:36]} g6 {[%emt 0:00:04]} 4. b3 {[%emt 0:00:16]} Bg7 {[%emt 0:00:18]} 5. Bb2 {[%emt 0:00:54]} c5 {[%emt 0:03:15]} 6. g3 {[%emt 0:03:56]} Ne4 {[%emt 0:00:29]} 7. Bg2 {[%emt 0:15:15]} Qa5+ {[%emt 0:00:17]} 8. Nfd2 {[%emt 0:00:29]} Nxd2 {[%emt 0:01:48]} 9. Bc3 {[%emt 0:00:05]} Qb6 {[%emt 0:12:43]} 10. dxc5 {[%emt 0:00:42]} Nxb1 {[%emt 0:00:24]} 11. Bxg7 {[%emt 0:14:30]} Qb4+ {[%emt 0:02:11]} 12. Kf1 {[%emt 0:00:07]} Rg8 {[%emt 0:01:16]} 13. Bh6 {[%emt 0:00:38]} g5 {[%emt 0:05:37]} 14. h4 {[%emt 0:09:23]} Bf5 {[%emt 0:38:12]} 15. Bxg5 {[%emt 0:06:47]} Nc6 {[%emt 0:03:16]} 16. Rxb1 {[%emt 0:07:09]} Bxb1 {[%emt 0:00:20]} 17. Qxb1 {[%emt 0:00:02]} Qxc5 {[%emt 0:02:16]} 18. Qxh7 {[%emt 0:01:21]} O-O-O {[%emt 0:02:43]} 19. Qxf7 {[%emt 0:01:07]} Kb8 {[%emt 0:01:24]} 20. Qd5 {[%emt 0:01:22]} Qb6 {[%emt 0:02:10]} 21. Qb5 {[%emt 0:01:53]} Qxb5 {[%emt 0:02:15]} 22. cxb5 {[%emt 0:00:02]} Nd4 {[%emt 0:00:08]} 23. Bxe7 {[%emt 0:00:16]} Rd7 {[%emt 0:00:03]} 24. Bf6 {[%emt 0:00:22]} Rc7 {[%emt 0:01:08]} 25. Bd5 {[%emt 0:00:39]} 1-0

[Event "Polonia Wroclaw Masters Cup-GM"]
[Site "Wroclaw"]
[Date "2019.05.03"]
[Round "7.5"]
[White "Skawinski, Arkadiusz"]
[Black "Sivuk, Vitaliy"]
[Result "1/2-1/2"]
[ECO "B51"]
[WhiteElo "2392"]
[BlackElo "2523"]
[Annotator "ChessBase"]
[PlyCount "57"]
[EventDate "2019.04.28"]
[EventType "tourn"]
[EventCountry "POL"]
[SourceTitle "playchess.com"]
[Source "ChessBase"]
[SourceQuality "1"]
[TimeControl "40/5400+30:900+30"]

1. e4 {[%emt 0:00:00]} c5 {[%emt 0:00:00]} 2. Nf3 {[%emt 0:00:00]} d6 {[%emt 0:00:00]} 3. Bb5+ {[%emt 0:00:00]} Nd7 {[%emt 0:00:00]} 4. O-O {[%emt 0:00:00]} a6 {[%emt 0:00:05]} 5. Bd3 {[%emt 0:00:00]} Ngf6 {[%emt 0:00:10]} 6. Re1 {[%emt 0:00:00]} g6 {[%emt 0:00:09]} 7. c3 {[%emt 0:01:04]} Bg7 {[%emt 0:00:07]} 8. Bc2 {[%emt 0:00:47]} O-O {[%emt 0:00:08]} 9. d4 {[%emt 0:00:04]} e5 {[%emt 0:00:06]} 10. dxe5 {[%emt 0:09:03]} Nxe5 {[%emt 0:00:07]} 11. Nxe5 {[%emt 0:03:05]} dxe5 {[%emt 0:00:06]} 12. Qxd8 {[%emt 0:09:38]} Rxd8 {[%emt 0:00:02]} 13. Be3 {[%emt 0:00:08]} Bf8 {[%emt 0:00:09]} 14. f3 {[%emt 0:07:58]} Be6 {[%emt 0:00:13]} 15. Nd2 {[%emt 0:01:44]} b5 {[%emt 0:00:09]} 16. Red1 {[%emt 0:02:35]} c4 {[%emt 0:00:59]} 17. b4 {[%emt 0:12:38]} cxb3 {[%emt 0:03:35]} 18. axb3 {[%emt 0:04:24]} Rdc8 {[%emt 0:00:11]} 19. c4 {[%emt 0:01:33]} bxc4 {[%emt 0:03:33]} 20. Nxc4 {[%emt 0:00:32]} Bxc4 {[%emt 0:00:08]} 21. bxc4 {[%emt 0:00:05]} Rxc4 {[%emt 0:00:07]} 22. Bd3 {[%emt 0:00:07]} Rc3 {[%emt 0:04:31]} 23. Bg5 {[%emt 0:00:24]} Rc6 {[%emt 0:01:35]} 24. Bb5 {[%emt 0:03:53]} Rb6 {[%emt 0:00:43]} 25. Bc4 {[%emt 0:00:17]} Bc5+ {[%emt 0:02:44]} 26. Kf1 {[%emt 0:00:05]} Bd4 {[%emt 0:01:17]} 27. Rdb1 {[%emt 0:00:51]} Nd7 {[%emt 0:40:01]} 28. Rxb6 {[%emt 0:00:45]} Nxb6 {[%emt 0:00:05]} 29. Rxa6 {[%emt 0:00:19]} 1/2-1/2